[Event "Live Chess"]
[Site "Chess.com"]
[Date "2023.09.16"]
[Round "-"]
[White "nicolasgouvea"]
[Black "Enzoellobo"]
[Result "1-0"]
[WhiteElo "339"]
[BlackElo "174"]
[TimeControl "900+5"]
[EndTime "6:46:57 PDT"]
[Termination "nicolasgouvea venceu por xeque-mate"]

1. e4 {[%clk 0:15:01.1]} 1... e5 {[%clk 0:14:59.5]} 2. Nf3 {[%clk 0:15:04.1]}
2... d5 {[%clk 0:15:02]} 3. exd5 {[%clk 0:15:06.2]} 3... Bf5 {[%clk 0:15:03.3]}
4. Bb5+ {[%clk 0:15:05.8]} 4... Nd7 {[%clk 0:15:01.2]} 5. Bxd7+ {[%clk
0:15:07.7]} 5... Kxd7 {[%clk 0:15:03]} 6. Nxe5+ {[%clk 0:15:09.2]} 6... Kc8
{[%clk 0:15:05.6]} 7. Nxf7 {[%clk 0:15:09.7]} 7... Qe8+ {[%clk 0:15:04.4]} 8.
Qe2 {[%clk 0:15:03.8]} 8... Qxf7 {[%clk 0:15:02.2]} 9. d4 {[%clk 0:15:01.2]}
9... a5 {[%clk 0:14:57.2]} 10. Bg5 {[%clk 0:14:59.1]} 10... Ra6 {[%clk
0:14:59.5]} 11. O-O {[%clk 0:14:57.6]} 11... Rd6 {[%clk 0:15:01.1]} 12. Nc3
{[%clk 0:14:53.7]} 12... Rg6 {[%clk 0:14:52.5]} 13. Bf4 {[%clk 0:14:39.3]} 13...
Qf6 {[%clk 0:14:39.6]} 14. Qe6+ {[%clk 0:14:33.9]} 14... Bxe6 {[%clk 0:14:35]}
15. dxe6 {[%clk 0:14:33.4]} 15... Qxe6 {[%clk 0:14:37.6]} 16. Rfe1 {[%clk
0:14:32.8]} 16... Qf6 {[%clk 0:14:31.7]} 17. Re8+ {[%clk 0:14:32]} 17... Kd7
{[%clk 0:14:29.9]} 18. Rb8 {[%clk 0:14:31.7]} 18... Rg4 {[%clk 0:14:25.5]} 19.
Rxb7 {[%clk 0:14:33.6]} 19... Bb4 {[%clk 0:14:23.2]} 20. Nd5 {[%clk 0:14:30.9]}
20... Qxf4 {[%clk 0:14:19.1]} 21. Nxf4 {[%clk 0:14:30.8]} 21... Rxf4 {[%clk
0:14:18.9]} 22. Rb8 {[%clk 0:14:25.3]} 22... Re4 {[%clk 0:14:18.1]} 23. c3
{[%clk 0:14:22.1]} 23... Be7 {[%clk 0:14:01.9]} 24. f3 {[%clk 0:14:17]} 24...
Rf4 {[%clk 0:14:01.9]} 25. Re1 {[%clk 0:14:13.7]} 25... c6 {[%clk 0:13:57.4]}
26. Rb7+ {[%clk 0:14:03.8]} 26... Kc8 {[%clk 0:13:57.8]} 27. Ra7 {[%clk
0:13:55.4]} 27... Bh4 {[%clk 0:13:59.3]} 28. Re8+ {[%clk 0:13:54.3]} 28... Bd8
{[%clk 0:13:51.9]} 29. Rxg7 {[%clk 0:13:49.7]} 29... Kb8 {[%clk 0:13:48.1]} 30.
Rgxg8 {[%clk 0:13:42.4]} 30... Rxg8 {[%clk 0:13:26.7]} 31. Rxg8 {[%clk
0:13:28.1]} 31... a4 {[%clk 0:13:25.7]} 32. Rxd8+ {[%clk 0:13:28.6]} 32... Kc7
{[%clk 0:13:27.6]} 33. Rh8 {[%clk 0:13:27.9]} 33... h5 {[%clk 0:13:24.3]} 34.
Rxh5 {[%clk 0:13:29.5]} 34... c5 {[%clk 0:13:24.7]} 35. dxc5 {[%clk 0:13:31.2]}
35... Rc4 {[%clk 0:13:17.2]} 36. a3 {[%clk 0:13:26.6]} 36... Kc6 {[%clk
0:13:11.9]} 37. g3 {[%clk 0:13:18.2]} 37... Rxc5 {[%clk 0:12:59.5]} 38. Rxc5+
{[%clk 0:13:18.1]} 38... Kxc5 {[%clk 0:13:02.5]} 39. h4 {[%clk 0:13:17.4]} 39...
Kc4 {[%clk 0:13:06.1]} 40. h5 {[%clk 0:13:18.1]} 40... Kb3 {[%clk 0:13:09.2]}
41. Kf1 {[%clk 0:13:16.8]} 41... Kxb2 {[%clk 0:13:12.5]} 42. Ke1 {[%clk
0:13:19.9]} 42... Kxc3 {[%clk 0:13:14.1]} 43. Kd1 {[%clk 0:13:22.9]} 43... Kb3
{[%clk 0:13:17.7]} 44. Kc1 {[%clk 0:13:26.4]} 44... Kxa3 {[%clk 0:13:21.6]} 45.
Kb1 {[%clk 0:13:28.5]} 45... Kb3 {[%clk 0:13:23.6]} 46. h6 {[%clk 0:13:26.9]}
46... a3 {[%clk 0:13:27.2]} 47. Ka1 {[%clk 0:13:28.7]} 47... a2 {[%clk
0:13:27.6]} 48. h7 {[%clk 0:13:31.9]} 48... Kc3 {[%clk 0:13:26.4]} 49. h8=Q+
{[%clk 0:13:34.4]} 49... Kd3 {[%clk 0:13:30]} 50. Qh3 {[%clk 0:13:37.2]} 50...
Kc2 {[%clk 0:13:32.4]} 51. Qg4 {[%clk 0:13:39.2]} 51... Kd1 {[%clk 0:13:33.9]}
52. f4+ {[%clk 0:13:42.1]} 52... Kc2 {[%clk 0:13:35.7]} 53. f5 {[%clk 0:13:46]}
53... Kc1 {[%clk 0:13:38.3]} 54. f6 {[%clk 0:13:48.7]} 54... Kc2 {[%clk
0:13:41.7]} 55. Qc4+ {[%clk 0:13:51.4]} 55... Kd2 {[%clk 0:13:44.3]} 56. f7
{[%clk 0:13:54.2]} 56... Kd1 {[%clk 0:13:47.5]} 57. f8=Q {[%clk 0:13:56.3]}
57... Ke1 {[%clk 0:13:48.5]} 58. Qff1+ {[%clk 0:13:54.9]} 58... Kd2 {[%clk
0:13:50.5]} 59. Qfc1# {[%clk 0:13:57.5]} 1-0

[Event "Live Chess"]
[Site "Chess.com"]
[Date "2023.09.16"]
[Round "-"]
[White "Enzoellobo"]
[Black "GigiAlmeidaXadrez"]
[Result "0-1"]
[WhiteElo "174"]
[BlackElo "1088"]
[TimeControl "900+5"]
[EndTime "6:49:50 PDT"]
[Termination "GigiAlmeidaXadrez venceu por xeque-mate"]

1. e4 {[%clk 0:14:58.9]} 1... c5 {[%clk 0:15:03.5]} 2. d4 {[%clk 0:15:01.7]}
2... cxd4 {[%clk 0:15:06.3]} 3. Bc4 {[%clk 0:15:03.1]} 3... Nc6 {[%clk
0:14:57.9]} 4. Qh5 {[%clk 0:15:00.6]} 4... e6 {[%clk 0:14:51.3]} 5. Bg5 {[%clk
0:14:55.9]} 5... Qa5+ {[%clk 0:14:40.5]} 6. Kf1 {[%clk 0:14:44]} 6... g6 {[%clk
0:14:23.2]} 7. Qg4 {[%clk 0:14:43]} 7... Ne5 {[%clk 0:14:13.1]} 8. Qf5 {[%clk
0:14:44.5]} 8... exf5 {[%clk 0:14:12.5]} 9. Ne2 {[%clk 0:14:39.6]} 9... Nxc4
{[%clk 0:14:13.3]} 10. Kg1 {[%clk 0:14:42.5]} 10... Qe1# {[%clk 0:14:14.1]} 0-1

[Event "Live Chess"]
[Site "Chess.com"]
[Date "2023.09.16"]
[Round "-"]
[White "RenatoMizuki"]
[Black "kadabraxadrez"]
[Result "1-0"]
[WhiteElo "1159"]
[BlackElo "905"]
[TimeControl "900+5"]
[EndTime "6:52:32 PDT"]
[Termination "RenatoMizuki venceu por desistência"]

1. e4 {[%clk 0:15:03.5]} 1... e5 {[%clk 0:15:02.3]} 2. Nf3 {[%clk 0:15:08]} 2...
Nc6 {[%clk 0:15:04.7]} 3. Bc4 {[%clk 0:15:11.1]} 3... Bc5 {[%clk 0:15:05.2]} 4.
d3 {[%clk 0:15:06.5]} 4... Nf6 {[%clk 0:15:05.5]} 5. Bg5 {[%clk 0:15:01]} 5...
d6 {[%clk 0:15:02.4]} 6. h3 {[%clk 0:14:51.7]} 6... h6 {[%clk 0:15:02.4]} 7. Bh4
{[%clk 0:14:41.3]} 7... a6 {[%clk 0:14:56.9]} 8. a3 {[%clk 0:14:31.9]} 8... b5
{[%clk 0:14:46]} 9. Bb3 {[%clk 0:14:33.4]} 9... Bd4 {[%clk 0:14:41.5]} 10. c3
{[%clk 0:14:17.7]} 10... Bc5 {[%clk 0:14:38.2]} 11. Ba2 {[%clk 0:13:47.2]} 11...
a5 {[%clk 0:13:39]} 12. O-O {[%clk 0:13:14.4]} 12... b4 {[%clk 0:13:20.1]} 13.
Qa4 {[%clk 0:13:01.5]} 13... Bb7 {[%clk 0:11:55.6]} 14. Bd5 {[%clk 0:12:50.4]}
14... Ra6 {[%clk 0:11:36.2]} 15. d4 {[%clk 0:12:17.8]} 15... Ba7 {[%clk
0:10:54.9]} 16. dxe5 {[%clk 0:12:09]} 16... dxe5 {[%clk 0:10:53.5]} 17. Nxe5
{[%clk 0:12:11.3]} 17... O-O {[%clk 0:10:50.2]} 18. Nxc6 {[%clk 0:12:09.9]}
18... Bxc6 {[%clk 0:10:53.7]} 19. Bxc6 {[%clk 0:12:11.5]} 1-0

[Event "Live Chess"]
[Site "Chess.com"]
[Date "2023.09.16"]
[Round "-"]
[White "DaviLucasMoraisLima"]
[Black "Dfran2015"]
[Result "1-0"]
[WhiteElo "1210"]
[BlackElo "558"]
[TimeControl "900+5"]
[EndTime "6:53:42 PDT"]
[Termination "DaviLucasMoraisLima venceu por xeque-mate"]

1. e4 {[%clk 0:15:00.4]} 1... e5 {[%clk 0:15:03.8]} 2. Nf3 {[%clk 0:15:03.3]}
2... c6 {[%clk 0:15:07.3]} 3. d3 {[%clk 0:15:03.7]} 3... d6 {[%clk 0:15:07.6]}
4. Ng5 {[%clk 0:15:06.7]} 4... f6 {[%clk 0:14:58.6]} 5. Nf3 {[%clk 0:15:06.1]}
5... d5 {[%clk 0:14:58.8]} 6. exd5 {[%clk 0:15:09.1]} 6... cxd5 {[%clk
0:15:03.2]} 7. Nh4 {[%clk 0:15:01.4]} 7... Nc6 {[%clk 0:14:59.1]} 8. Qh5+ {[%clk
0:15:02.2]} 8... g6 {[%clk 0:15:01.7]} 9. Nxg6 {[%clk 0:15:05.4]} 9... f5 {[%clk
0:14:50.3]} 10. Nxh8+ {[%clk 0:15:07.5]} 10... Ke7 {[%clk 0:14:36]} 11. Bg5+
{[%clk 0:15:06.3]} 11... Nf6 {[%clk 0:14:37.1]} 12. Qf7+ {[%clk 0:15:08.1]}
12... Kd6 {[%clk 0:14:38.3]} 13. Bxf6 {[%clk 0:15:10.3]} 13... Be6 {[%clk
0:14:34]} 14. Bxd8 {[%clk 0:14:50.2]} 14... Bxf7 {[%clk 0:14:33.9]} 15. Nxf7+
{[%clk 0:14:52.5]} 15... Kd7 {[%clk 0:14:32.9]} 16. Bh4 {[%clk 0:14:53.1]} 16...
Bb4+ {[%clk 0:14:31.8]} 17. c3 {[%clk 0:14:55.2]} 17... Bf8 {[%clk 0:14:30.6]}
18. c4 {[%clk 0:14:55.8]} 18... dxc4 {[%clk 0:14:32.3]} 19. dxc4 {[%clk
0:14:56]} 19... Nd4 {[%clk 0:14:33.3]} 20. Kd1 {[%clk 0:14:52.4]} 20... Bh6
{[%clk 0:14:25.6]} 21. Nxh6 {[%clk 0:14:52.1]} 21... Rc8 {[%clk 0:14:23.4]} 22.
Nc3 {[%clk 0:14:47.9]} 22... Rxc4 {[%clk 0:14:23.6]} 23. Bxc4 {[%clk 0:14:47.6]}
23... Kc6 {[%clk 0:14:17.4]} 24. Bb5+ {[%clk 0:14:45.8]} 24... Kc5 {[%clk
0:14:15.7]} 25. Be7+ {[%clk 0:14:48.2]} 25... Kb6 {[%clk 0:14:17]} 26. a4 {[%clk
0:14:47.2]} 26... Nxb5 {[%clk 0:14:15.4]} 27. Nxb5 {[%clk 0:14:49.5]} 27... a6
{[%clk 0:14:04]} 28. Nc3 {[%clk 0:14:46.2]} 28... a5 {[%clk 0:13:50.2]} 29. Kc2
{[%clk 0:14:46.8]} 29... Kc6 {[%clk 0:13:52.2]} 30. Rad1 {[%clk 0:14:47.8]}
30... Kc7 {[%clk 0:13:50.8]} 31. Nb5+ {[%clk 0:14:49.1]} 31... Kc6 {[%clk
0:13:50.9]} 32. Rd6+ {[%clk 0:14:49.1]} 32... Kc5 {[%clk 0:13:50.1]} 33. Rd8+
{[%clk 0:14:43.2]} 33... Kb6 {[%clk 0:13:48.1]} 34. Rhd1 {[%clk 0:14:35]} 34...
Ka6 {[%clk 0:13:34]} 35. R1d6+ {[%clk 0:14:30.3]} 35... b6 {[%clk 0:13:33.8]}
36. Nc7+ {[%clk 0:14:24.7]} 36... Kb7 {[%clk 0:13:35.5]} 37. R8d7 {[%clk
0:14:21.3]} 37... Kc8 {[%clk 0:13:35]} 38. Ne6 {[%clk 0:14:20.7]} 38... Kb8
{[%clk 0:13:34.3]} 39. Rxb6+ {[%clk 0:14:22.5]} 39... Kc8 {[%clk 0:13:37.4]} 40.
Rd8# {[%clk 0:14:25.1]} 1-0

[Event "Live Chess"]
[Site "Chess.com"]
[Date "2023.09.16"]
[Round "-"]
[White "Timsoso"]
[Black "DaviLucasMoraisLima"]
[Result "0-1"]
[WhiteElo "257"]
[BlackElo "1210"]
[TimeControl "900+5"]
[EndTime "6:58:07 PDT"]
[Termination "DaviLucasMoraisLima venceu por xeque-mate"]

1. e4 {[%clk 0:14:41.9]} 1... e5 {[%clk 0:15:02]} 2. Nf3 {[%clk 0:14:39.9]} 2...
d6 {[%clk 0:15:05.1]} 3. Bc4 {[%clk 0:14:38.5]} 3... Bg4 {[%clk 0:15:07.7]} 4.
d4 {[%clk 0:14:34.7]} 4... exd4 {[%clk 0:15:09.8]} 5. g3 {[%clk 0:14:16.3]} 5...
Qf6 {[%clk 0:15:09.9]} 6. h3 {[%clk 0:14:17.2]} 6... Bxf3 {[%clk 0:15:12]} 7.
Be2 {[%clk 0:14:16.2]} 7... Bxh1 {[%clk 0:15:13.2]} 8. Bc4 {[%clk 0:14:15.9]}
8... Qe5 {[%clk 0:14:53.6]} 9. Kf1 {[%clk 0:13:50.8]} 9... Qxe4 {[%clk
0:14:51.1]} 10. Kg1 {[%clk 0:13:49.1]} 10... Qg2# {[%clk 0:14:52.7]} 0-1

[Event "Live Chess"]
[Site "Chess.com"]
[Date "2023.09.16"]
[Round "-"]
[White "Enzoellobo"]
[Black "RenatoMizuki"]
[Result "0-1"]
[WhiteElo "174"]
[BlackElo "1159"]
[TimeControl "900+5"]
[EndTime "7:00:38 PDT"]
[Termination "RenatoMizuki venceu por xeque-mate"]

1. e4 {[%clk 0:14:59.4]} 1... e5 {[%clk 0:15:00.7]} 2. d4 {[%clk 0:15:01.3]}
2... exd4 {[%clk 0:14:56.1]} 3. Bc4 {[%clk 0:15:03.5]} 3... Nc6 {[%clk
0:14:53.5]} 4. Qh5 {[%clk 0:15:03.2]} 4... Qe7 {[%clk 0:14:49.5]} 5. Nf3 {[%clk
0:14:59.7]} 5... Qxe4+ {[%clk 0:14:47.8]} 6. Kf1 {[%clk 0:14:59.3]} 6... d5
{[%clk 0:14:22.1]} 7. Bd3 {[%clk 0:14:53.3]} 7... Qe6 {[%clk 0:14:15.3]} 8. Bg5
{[%clk 0:14:51.8]} 8... g6 {[%clk 0:13:59.4]} 9. Qh4 {[%clk 0:14:47]} 9... Be7
{[%clk 0:13:55.6]} 10. Qf4 {[%clk 0:14:43]} 10... Bd6 {[%clk 0:13:46.3]} 11. Qd2
{[%clk 0:14:30.6]} 11... f6 {[%clk 0:13:43.9]} 12. Bh4 {[%clk 0:14:23.4]} 12...
Bd7 {[%clk 0:13:34.2]} 13. Na3 {[%clk 0:14:23.8]} 13... O-O-O {[%clk 0:13:34.3]}
14. Re1 {[%clk 0:14:24.6]} 14... Qf7 {[%clk 0:13:20.3]} 15. Nb5 {[%clk 0:14:25]}
15... Bc5 {[%clk 0:13:12.3]} 16. g4 {[%clk 0:14:07.3]} 16... Bxg4 {[%clk
0:13:07.8]} 17. Nfxd4 {[%clk 0:14:00.3]} 17... Nxd4 {[%clk 0:13:02.1]} 18. Qd1
{[%clk 0:13:59.7]} 18... Bxd1 {[%clk 0:12:59.4]} 19. Rxd1 {[%clk 0:14:02.8]}
19... Nxb5 {[%clk 0:13:01.5]} 20. Rg1 {[%clk 0:14:06.2]} 20... Nd4 {[%clk
0:12:54.5]} 21. Rg4 {[%clk 0:14:03.1]} 21... Nf3 {[%clk 0:12:50]} 22. Rd2 {[%clk
0:13:55.6]} 22... Nxd2+ {[%clk 0:12:49.8]} 23. Ke1 {[%clk 0:13:55.8]} 23... Nf3+
{[%clk 0:12:42.6]} 24. Ke2 {[%clk 0:13:56.4]} 24... Nxh4 {[%clk 0:12:46.1]} 25.
Rxh4 {[%clk 0:13:57.8]} 25... Qe6+ {[%clk 0:12:49.5]} 26. Kd2 {[%clk 0:13:56.5]}
26... Re8 {[%clk 0:12:53.1]} 27. a4 {[%clk 0:13:56]} 27... Qe1# {[%clk
0:12:55.6]} 0-1

[Event "Live Chess"]
[Site "Chess.com"]
[Date "2023.09.16"]
[Round "-"]
[White "Timsoso"]
[Black "Dfran2015"]
[Result "0-1"]
[WhiteElo "251"]
[BlackElo "574"]
[TimeControl "900+5"]
[EndTime "7:06:30 PDT"]
[Termination "Dfran2015 venceu por xeque-mate"]

1. e4 {[%clk 0:15:00.3]} 1... e5 {[%clk 0:15:02.3]} 2. Nf3 {[%clk 0:15:03.5]}
2... Nc6 {[%clk 0:15:04.6]} 3. Bc4 {[%clk 0:15:05]} 3... d6 {[%clk 0:15:04.7]}
4. O-O {[%clk 0:14:58.7]} 4... Be6 {[%clk 0:15:04.1]} 5. Bb3 {[%clk 0:14:54.2]}
5... Bxb3 {[%clk 0:15:05.6]} 6. axb3 {[%clk 0:14:55.5]} 6... Nd4 {[%clk
0:15:09]} 7. Qe2 {[%clk 0:14:47.2]} 7... Nxe2+ {[%clk 0:15:09.2]} 8. Kh1 {[%clk
0:14:39.8]} 8... Nxc1 {[%clk 0:15:13.6]} 9. Rxc1 {[%clk 0:14:40.9]} 9... Qf6
{[%clk 0:15:16.6]} 10. Rf1 {[%clk 0:14:41.4]} 10... Qf4 {[%clk 0:15:20.4]} 11.
g3 {[%clk 0:14:43.1]} 11... Qxf3+ {[%clk 0:15:18.1]} 12. Kg1 {[%clk 0:14:43.2]}
12... Qxe4 {[%clk 0:15:17.2]} 13. f3 {[%clk 0:14:45.4]} 13... Qxc2 {[%clk
0:15:11.9]} 14. Re1 {[%clk 0:14:41.2]} 14... Qxb2 {[%clk 0:15:08.7]} 15. Ra4
{[%clk 0:14:33]} 15... Qxb3 {[%clk 0:15:00.9]} 16. Nc3 {[%clk 0:14:29.1]} 16...
Qb6+ {[%clk 0:14:59.5]} 17. Re3 {[%clk 0:14:05.6]} 17... Qb2 {[%clk 0:14:49.1]}
18. Ra2 {[%clk 0:14:03.3]} 18... Qc1+ {[%clk 0:14:49.3]} 19. Kf2 {[%clk
0:14:00.4]} 19... O-O-O {[%clk 0:14:47]} 20. Re1 {[%clk 0:13:51.8]} 20... Qxe1+
{[%clk 0:14:35.2]} 21. Kxe1 {[%clk 0:13:52.3]} 21... Nf6 {[%clk 0:14:38.8]} 22.
f4 {[%clk 0:13:50.9]} 22... Ng4 {[%clk 0:14:40.8]} 23. fxe5 {[%clk 0:13:53.7]}
23... dxe5 {[%clk 0:14:42.3]} 24. h4 {[%clk 0:13:54.7]} 24... Rd3 {[%clk
0:14:32.2]} 25. Ke2 {[%clk 0:13:51.8]} 25... Rxg3 {[%clk 0:14:29.8]} 26. h5
{[%clk 0:13:52.4]} 26... Bb4 {[%clk 0:14:24.2]} 27. Ne4 {[%clk 0:13:46.9]} 27...
Rg2+ {[%clk 0:14:19.8]} 28. Kf3 {[%clk 0:13:43.5]} 28... Rxd2 {[%clk 0:14:18.6]}
29. Rxa7 {[%clk 0:13:32.9]} 29... Rf2+ {[%clk 0:14:06.7]} 30. Kxg4 {[%clk
0:13:32.7]} 30... Re2 {[%clk 0:14:04.5]} 31. Kg5 {[%clk 0:13:30.7]} 31... Rxe4
{[%clk 0:14:06.1]} 32. h6 {[%clk 0:13:33.4]} 32... Bd2+ {[%clk 0:14:10.2]} 33.
Kh5 {[%clk 0:13:34.6]} 33... g6# {[%clk 0:14:10.2]} 0-1

[Event "Live Chess"]
[Site "Chess.com"]
[Date "2023.09.16"]
[Round "-"]
[White "RenatoMizuki"]
[Black "DaviLucasMoraisLima"]
[Result "0-1"]
[WhiteElo "1152"]
[BlackElo "1217"]
[TimeControl "900+5"]
[EndTime "7:07:05 PDT"]
[Termination "DaviLucasMoraisLima venceu por xeque-mate"]

1. e4 {[%clk 0:15:03.6]} 1... e5 {[%clk 0:15:01.7]} 2. Nf3 {[%clk 0:15:08]} 2...
d6 {[%clk 0:15:01.1]} 3. Bc4 {[%clk 0:15:11.6]} 3... Bg4 {[%clk 0:15:03]} 4. h3
{[%clk 0:15:12.9]} 4... Bh5 {[%clk 0:15:06.5]} 5. Nc3 {[%clk 0:15:09.5]} 5...
Nc6 {[%clk 0:15:08.9]} 6. d3 {[%clk 0:15:11.3]} 6... Nd4 {[%clk 0:15:10.9]} 7.
g4 {[%clk 0:15:06.7]} 7... Bg6 {[%clk 0:15:12.1]} 8. Nxd4 {[%clk 0:15:07.3]}
8... exd4 {[%clk 0:15:14.2]} 9. Qf3 {[%clk 0:15:08.6]} 9... dxc3 {[%clk
0:15:16.5]} 10. bxc3 {[%clk 0:15:08.1]} 10... Be7 {[%clk 0:15:00.5]} 11. Bb2
{[%clk 0:14:57.5]} 11... Nf6 {[%clk 0:14:59.5]} 12. g5 {[%clk 0:14:56.6]} 12...
Nd7 {[%clk 0:14:55.1]} 13. h4 {[%clk 0:14:44.5]} 13... Ne5 {[%clk 0:14:56.3]}
14. Qf4 {[%clk 0:14:33.1]} 14... Nxc4 {[%clk 0:14:53.9]} 15. dxc4 {[%clk
0:14:34.2]} 15... O-O {[%clk 0:14:57.3]} 16. Qg4 {[%clk 0:14:29.3]} 16... Re8
{[%clk 0:14:58.1]} 17. h5 {[%clk 0:13:41.7]} 17... Bxe4 {[%clk 0:15:00.1]} 18.
Rh3 {[%clk 0:13:35.7]} 18... Bxg5 {[%clk 0:14:57.9]} 19. Kd1 {[%clk 0:12:31.6]}
19... Qe7 {[%clk 0:14:55.5]} 20. h6 {[%clk 0:12:28.1]} 20... Bf3+ {[%clk
0:14:56.4]} 21. Qxf3 {[%clk 0:12:22]} 21... Qe1# {[%clk 0:14:57.7]} 0-1

[Event "Live Chess"]
[Site "Chess.com"]
[Date "2023.09.16"]
[Round "-"]
[White "GigiAlmeidaXadrez"]
[Black "kadabraxadrez"]
[Result "0-1"]
[WhiteElo "1074"]
[BlackElo "947"]
[TimeControl "900+5"]
[EndTime "7:08:08 PDT"]
[Termination "kadabraxadrez venceu por xeque-mate"]

1. e4 {[%clk 0:15:01.9]} 1... e5 {[%clk 0:15:03]} 2. Nf3 {[%clk 0:15:03.9]} 2...
Nc6 {[%clk 0:15:05.9]} 3. Bc4 {[%clk 0:15:06.3]} 3... Bc5 {[%clk 0:15:07.7]} 4.
O-O {[%clk 0:15:09.1]} 4... Nf6 {[%clk 0:15:09.6]} 5. Ng5 {[%clk 0:15:02.9]}
5... O-O {[%clk 0:15:12]} 6. Nc3 {[%clk 0:15:04.9]} 6... h6 {[%clk 0:15:11.3]}
7. Nf3 {[%clk 0:15:07.6]} 7... d6 {[%clk 0:14:18.1]} 8. h3 {[%clk 0:15:08.9]}
8... Nd4 {[%clk 0:13:19.6]} 9. Nxd4 {[%clk 0:15:06.4]} 9... Bxd4 {[%clk
0:13:23.3]} 10. Nb5 {[%clk 0:14:44.5]} 10... Bb6 {[%clk 0:12:16.5]} 11. Nc3
{[%clk 0:14:07.4]} 11... c6 {[%clk 0:11:14.9]} 12. d3 {[%clk 0:13:58.5]} 12...
Be6 {[%clk 0:10:10.5]} 13. Bxe6 {[%clk 0:13:22.7]} 13... fxe6 {[%clk 0:10:10.3]}
14. Qf3 {[%clk 0:13:13.2]} 14... d5 {[%clk 0:09:46.1]} 15. Rd1 {[%clk 0:13:00]}
15... a5 {[%clk 0:09:10.9]} 16. Qg3 {[%clk 0:12:42.9]} 16... Nxe4 {[%clk
0:07:54.6]} 17. dxe4 {[%clk 0:12:21.8]} 17... Bxf2+ {[%clk 0:07:54.6]} 18. Qxf2
{[%clk 0:12:17.6]} 18... Rxf2 {[%clk 0:07:57.5]} 19. Kxf2 {[%clk 0:12:19.8]}
19... Qb6+ {[%clk 0:07:50.1]} 20. Ke2 {[%clk 0:12:20.6]} 20... Rf8 {[%clk
0:07:48.4]} 21. Bd2 {[%clk 0:12:14.7]} 21... d4 {[%clk 0:07:05.1]} 22. Na4
{[%clk 0:12:06.5]} 22... Qb5+ {[%clk 0:07:05.3]} 23. c4 {[%clk 0:11:34.9]} 23...
Qxc4+ {[%clk 0:06:59.7]} 24. Ke1 {[%clk 0:11:35.8]} 24... Qf1# {[%clk
0:06:58.6]} 0-1

[Event "Live Chess"]
[Site "Chess.com"]
[Date "2023.09.16"]
[Round "-"]
[White "Theo_Sossai"]
[Black "Enzoellobo"]
[Result "1-0"]
[WhiteElo "600"]
[BlackElo "172"]
[TimeControl "900+5"]
[EndTime "7:11:05 PDT"]
[Termination "Theo_Sossai venceu por xeque-mate"]

1. e4 {[%clk 0:14:39.4]} 1... e5 {[%clk 0:15:02.6]} 2. Bc4 {[%clk 0:14:40.5]}
2... d5 {[%clk 0:14:57.4]} 3. Bb3 {[%clk 0:14:42.5]} 3... Bb4 {[%clk 0:14:49.6]}
4. exd5 {[%clk 0:14:44.1]} 4... Qg5 {[%clk 0:14:49.9]} 5. Nf3 {[%clk 0:14:37.7]}
5... Qxg2 {[%clk 0:14:46.2]} 6. Nh4 {[%clk 0:14:24.2]} 6... Qxh1+ {[%clk
0:14:48.5]} 7. Ke2 {[%clk 0:14:29.1]} 7... Bg4+ {[%clk 0:14:42.5]} 8. f3 {[%clk
0:14:28.9]} 8... Qxh2+ {[%clk 0:14:29.8]} 9. Ke1 {[%clk 0:14:20.9]} 9... Nf6
{[%clk 0:14:19.7]} 10. Qe2 {[%clk 0:14:13.1]} 10... Qh1+ {[%clk 0:14:13.9]} 11.
Kf2 {[%clk 0:14:06.7]} 11... Bc5+ {[%clk 0:14:10.5]} 12. Kg3 {[%clk 0:14:03.5]}
12... O-O {[%clk 0:14:08.7]} 13. Qg2 {[%clk 0:13:43.1]} 13... Qxc1 {[%clk
0:14:04.3]} 14. fxg4 {[%clk 0:13:42.7]} 14... Ne4+ {[%clk 0:14:03.8]} 15. Kf3
{[%clk 0:13:43]} 15... Ng5+ {[%clk 0:14:04.6]} 16. Ke2 {[%clk 0:13:39.1]} 16...
Nc6 {[%clk 0:13:55]} 17. dxc6 {[%clk 0:13:38.7]} 17... Rad8 {[%clk 0:13:55.4]}
18. Nf3 {[%clk 0:13:28.6]} 18... e4 {[%clk 0:13:44.6]} 19. Nxg5 {[%clk 0:13:30]}
19... Rxd2+ {[%clk 0:13:41.6]} 20. Nxd2 {[%clk 0:13:31.7]} 20... Qxa1 {[%clk
0:13:36]} 21. Ngxe4 {[%clk 0:13:21.4]} 21... b5 {[%clk 0:13:33]} 22. Nxc5 {[%clk
0:13:23.1]} 22... Re8+ {[%clk 0:13:35.3]} 23. Kf2 {[%clk 0:13:21.5]} 23... Re1
{[%clk 0:13:34.1]} 24. Qd5 {[%clk 0:13:09.1]} 24... Rh1 {[%clk 0:13:32.7]} 25.
Qd8# {[%clk 0:13:11.4]} 1-0

[Event "Live Chess"]
[Site "Chess.com"]
[Date "2023.09.16"]
[Round "-"]
[White "Theo_Sossai"]
[Black "RenatoMizuki"]
[Result "0-1"]
[WhiteElo "588"]
[BlackElo "1153"]
[TimeControl "900+5"]
[EndTime "7:18:10 PDT"]
[Termination "RenatoMizuki venceu por xeque-mate"]

1. e4 {[%clk 0:14:56.7]} 1... e5 {[%clk 0:15:03.9]} 2. Bc4 {[%clk 0:14:55.5]}
2... Nc6 {[%clk 0:15:07.2]} 3. Bb3 {[%clk 0:14:58.6]} 3... Bc5 {[%clk
0:15:10.1]} 4. Qe2 {[%clk 0:15:01.2]} 4... Nf6 {[%clk 0:15:12.9]} 5. Qc4 {[%clk
0:15:03.6]} 5... Qe7 {[%clk 0:14:49.8]} 6. Ne2 {[%clk 0:15:01.3]} 6... a6 {[%clk
0:14:46.5]} 7. O-O {[%clk 0:15:02.2]} 7... b5 {[%clk 0:14:44.8]} 8. Qc3 {[%clk
0:15:00.2]} 8... Bb4 {[%clk 0:14:40]} 9. Qd3 {[%clk 0:14:59.2]} 9... Bc5 {[%clk
0:14:34.6]} 10. a4 {[%clk 0:14:40.3]} 10... Nb4 {[%clk 0:14:31.5]} 11. Qc3
{[%clk 0:14:40.2]} 11... Nxe4 {[%clk 0:14:31.7]} 12. Qf3 {[%clk 0:14:38]} 12...
Bxf2+ {[%clk 0:14:26.3]} 13. Rxf2 {[%clk 0:14:36.7]} 13... Nxf2 {[%clk
0:14:30.1]} 14. Qxf2 {[%clk 0:14:40.4]} 14... bxa4 {[%clk 0:14:31.2]} 15. Bxa4
{[%clk 0:14:42.4]} 15... O-O {[%clk 0:14:30.7]} 16. c3 {[%clk 0:14:35.8]} 16...
Nd3 {[%clk 0:13:14.7]} 17. Qf3 {[%clk 0:14:35.7]} 17... e4 {[%clk 0:13:08.3]}
18. Qg4 {[%clk 0:14:32.5]} 18... d6 {[%clk 0:13:07.5]} 19. Qh4 {[%clk
0:14:32.9]} 19... Qxh4 {[%clk 0:13:07.8]} 20. Bc6 {[%clk 0:14:28.2]} 20... Qe1#
{[%clk 0:13:06.3]} 0-1